bitfinex/quotes_ETHUSD_20240926
["timestamp","ask_amount","ask_price","bid_price","bid_amount"]
[1727336700845,3.79405,2628.6,2628.5,0.07305231]
[1727336701006,3.79405,2628.6,2628.4,0.0730848]
[1727336701007,3.04356,2628.5,2628.4,0.0730848]
[1727336701224,3.04356,2628.5,2628.0,1.75458413]
[1727336701427,3.04374,2628.4,2628.0,1.75458413]
[1727336701738,3.04374,2628.4,2628.1,0.7671008]
[1727336701926,3.04374,2628.4,2628.1,0.0731823]
[1727336703472,3.04374,2628.4,2628.2,0.69390287]
[1727336703628,3.04374,2628.4,2628.0,1.75458413]
[1727336703965,3.04374,2628.4,2628.1,0.07313883]
[1727336706133,3.04385,2628.3,2628.1,0.07313883]
[1727336706448,0.8128,2628.2,2627.9,1.75458413]
[1727336709838,0.8128,2628.2,2627.9,4.79882413]
[1727336710055,0.8128,2628.2,2628.0,0.86763768]
[1727336710243,0.8128,2628.2,2627.9,4.79882413]
[1727336710977,0.8128,2628.2,2628.0,1.73532686]
[1727336711135,3.04368,2628.4,2628.0,1.73532686]
[1727336711340,0.8269,2628.4,2628.0,0.86767775]
[1727336711581,3.87059,2628.4,2628.0,0.86767775]
[1727336716481,0.8269,2628.4,2628.0,0.86767775]
[1727336718082,3.87066,2628.4,2628.0,0.86767775]
[1727336718291,0.92202946,2628.4,2628.0,0.86767775]
[1727336718589,3.96573946,2628.4,2627.9,4.79876413]
[1727336718752,0.92202946,2628.4,2628.0,0.86768552]
[1727336719089,0.92202946,2628.4,2627.9,4.79874413]
[1727336719259,0.92202946,2628.4,2628.0,0.86771289]
[1727336719462,0.92202946,2628.4,2627.9,7.84292413]
[1727336720901,3.96576946,2628.4,2627.9,4.79874413]
[1727336721055,3.96576946,2628.4,2627.9,7.84294413]
[1727336721056,0.92202946,2628.4,2627.9,7.84294413]
[1727336721257,0.92202946,2628.4,2628.0,0.50475989]
[1727336721769,3.96570946,2628.4,2628.1,0.43388858]
[1727336721981,3.96570946,2628.4,2628.2,0.50469848]
[1727336722290,3.04379,2628.3,2628.2,0.0708063]
[1727336722504,0.09513262,2628.3,2628.2,0.50481453]
[1727336722792,4.86669714,2628.4,2628.2,0.50481453]
[1727336723963,4.86669714,2628.4,2628.3,0.43400823]
[1727336724193,4.86669714,2628.4,2628.3,0.50478204]
[1727336724563,1.82294714,2628.4,2628.3,0.93885113]
[1727336724760,2.76218238,2628.6,2628.3,0.5048429]
[1727336724982,0.7623,2628.6,2628.4,0.43406909]
[1727336725266,0.7623,2628.6,2628.5,0.5048214]
[1727336727064,1.99974383,2628.7,2628.5,0.5048214]
[1727336727293,3.89972419,2628.8,2628.5,0.07075231]
[1727336727294,5.89946802,2628.8,2628.5,0.07075231]
[1727336727812,8.94273802,2628.8,2628.5,0.07075231]
[1727336728029,8.84761383,2628.8,2628.6,0.43383031]
[1727336728301,8.84761383,2628.8,2628.5,0.07075231]
[1727336728498,8.84761383,2628.8,2628.7,0.0707598]
[1727336728669,10.27666147,2628.8,2628.6,0.07079229]
[1727336728864,10.27666147,2628.8,2628.7,0.0707598]
[1727336729307,10.27666147,2628.8,2628.4,0.8027]
[1727336729472,8.84711215,2628.8,2628.7,0.0707598]
[1727336729667,8.84711215,2628.8,2628.4,0.8027]
[1727336729982,8.84711215,2628.8,2628.5,0.43377883]
[1727336730181,3.04317,2628.9,2628.7,1.75458413]
[1727336730182,1.99924215,2628.9,2628.7,1.75458413]
[1727336730376,3.04296,2629.1,2628.8,0.50450614]
[1727336730795,3.04296,2629.1,2628.9,0.43360723]
[1727336730967,3.04296,2629.1,2629.0,0.07066234]
[1727336731169,3.92929021,2629.1,2629.0,0.07066234]
[1727336731399,4.02439535,2629.1,2628.7,2.58508413]
[1727336731701,3.1380652,2629.1,2628.8,0.50420015]
[1727336731908,3.04296,2629.1,2628.8,0.07072731]
[1727336732113,0.7784,2629.2,2628.8,0.07072731]
[1727336732273,0.7784,2629.2,2628.7,2.58508413]
[1727336732477,3.82121,2629.2,2628.9,0.07069483]
[1727336732776,3.0,2629.3,2629.0,0.07066234]
[1727336733003,0.8205,2629.4,2629.1,2.53578413]
[1727336733172,5.13557151,2629.5,2629.2,0.07033653]
[1727336733386,3.13751917,2629.5,2629.2,0.07033653]
[1727336733608,3.13751917,2629.5,2629.1,2.53578413]
[1727336733609,3.04243,2629.5,2629.1,2.53578413]
[1727336733974,6.08491,2629.5,2629.2,0.07033653]
[1727336734209,3.04243,2629.5,2629.2,0.07033653]
[1727336734584,6.08494,2629.5,2629.1,2.53578413]
[1727336734894,6.08494,2629.5,2629.2,0.07033653]
[1727336735295,3.95791946,2629.6,2629.2,0.07033653]
[1727336735971,3.04235,2629.6,2629.3,1.75458413]
[1727336736176,3.04235,2629.6,2629.4,0.06957602]
[1727336737077,3.0425,2629.5,2629.1,2.53578413]
[1727336737501,3.04253,2629.4,2629.1,2.53578413]
[1727336738746,3.04244,2629.5,2629.1,2.53578413]
[1727336739517,3.04229,2629.6,2629.1,2.53578413]
[1727336739711,3.04254,2629.4,2629.1,2.53578413]
[1727336740819,0.8164,2629.5,2629.1,2.53578413]
[1727336740975,3.8588,2629.5,2629.1,2.53578413]
[1727336741182,0.8164,2629.5,2629.1,2.53578413]
[1727336741610,3.85888,2629.5,2629.1,2.53578413]
[1727336744011,0.8164,2629.5,2629.1,2.53578413]
[1727336744528,3.85884,2629.5,2629.1,2.53578413]
[1727336744849,3.85884,2629.5,2629.2,0.06964096]
[1727336745127,3.1373757,2629.6,2629.2,0.06964096]
[1727336745328,3.0424,2629.5,2629.2,0.06964096]
[1727336746422,3.1373757,2629.6,2629.2,0.06964096]
[1727336746423,3.04253,2629.4,2629.2,0.06964096]
[1727336746825,3.1373757,2629.6,2629.2,0.06964096]
[1727336746826,6.1797657,2629.6,2629.2,0.06964096]
[1727336747830,3.1373757,2629.6,2629.2,0.06964096]
[1727336748030,3.0424,2629.5,2629.2,0.06964096]
[1727336755406,3.1373757,2629.6,2629.2,0.06964096]
[1727336755605,10.5377175,2630.0,2629.2,0.06964096]
[1727336755606,10.5377175,2630.0,2629.5,1.75458413]
[1727336755825,10.5377175,2630.0,2629.7,2.51738413]
[1727336756047,3.04196,2629.9,2629.7,2.51738413]
[1727336756269,3.04196,2629.9,2629.8,0.06900428]
[1727336756745,3.04196,2629.9,2629.7,2.51738413]
[1727336756920,3.04196,2629.9,2629.8,0.06900428]
[1727336757301,3.04196,2629.9,2629.7,2.51738413]
[1727336757526,3.04196,2629.9,2629.8,0.06900428]
[1727336757944,3.04196,2629.9,2629.7,0.7628]
[1727336758132,3.04196,2629.9,2629.8,0.06900428]
[1727336758513,3.04196,2629.9,2629.7,0.7628]
[1727336758814,3.04196,2629.9,2629.8,0.06900428]
[1727336759143,3.04196,2629.9,2629.7,0.7628]
[1727336759320,3.04196,2629.9,2629.8,0.06900428]
[1727336759742,3.04196,2629.9,2629.7,0.7628]
[1727336760064,3.04196,2629.9,2629.8,0.06885868]
[1727336760413,3.04196,2629.9,2629.7,0.7628]
[1727336760667,3.04196,2629.9,2629.8,0.06885868]
[1727336761014,3.04196,2629.9,2629.7,0.7628]
[1727336761404,3.04196,2629.9,2629.8,0.06885868]
[1727336761754,3.04196,2629.9,2629.5,2.57998413]
[1727336762262,3.04196,2629.9,2629.6,0.06892361]
[1727336762460,3.04217,2629.7,2629.6,0.06892361]
[1727336762664,3.04255,2629.4,2629.0,0.43133026]
[1727336762970,3.04255,2629.4,2629.0,2.18591439]
[1727336763173,3.04255,2629.4,2629.1,0.06386875]
[1727336763702,6.17983996,2629.6,2629.1,0.06386875]
[1727336763904,3.04246,2629.5,2629.1,0.06386875]
[1727336764104,3.13743996,2629.6,2629.1,0.06386875]
[1727336764287,3.04235,2629.6,2629.1,0.06386875]
[1727336764477,3.04241,2629.5,2629.1,0.06386875]
[1727336765297,3.04253,2629.4,2629.1,0.06386875]
[1727336765496,3.04242,2629.5,2629.1,0.06386875]
[1727336768515,3.04252,2629.4,2629.1,0.06386875]
[1727336769319,6.08512,2629.4,2629.1,0.06386875]
[1727336769614,3.04252,2629.4,2629.1,0.06386875]
[1727336771173,6.08512,2629.4,2629.1,0.06386875]
[1727336771821,3.04252,2629.4,2629.1,0.06386875]
[1727336774127,3.04252,2629.4,2628.9,3.80998]
[1727336774329,3.04252,2629.4,2629.2,0.06425574]
[1727336774330,3.04264,2629.3,2629.2,0.06425574]
[1727336774513,3.346892,2629.3,2628.9,0.7669]
[1727336774714,3.04264,2629.3,2628.9,0.7669]
[1727336774935,3.04264,2629.3,2629.0,0.06441472]
[1727336776384,0.09509363,2629.5,2629.2,4.79731413]
[1727336776650,10.5377175,2630.0,2629.8,3.04205]
[1727336776846,10.5377175,2630.0,2629.9,4.79652413]
[1727336777043,10.5377175,2630.0,2629.9,5.66350322]
[1727336782857,10.5377175,2630.0,2629.9,2.62156322]
[1727336783066,10.5377175,2630.0,2629.9,6.22985654]
[1727336794785,10.5377175,2630.0,2629.9,9.30590022]
[1727336794969,10.5377175,2630.0,2629.9,9.22985654]
[1727336795177,4.72180606,2630.0,2629.9,9.22985654]
[1727336801708,0.0382175,2630.8,2630.0,0.7889]
[1727336801901,0.0382175,2630.8,2630.5,4.79574413]
[1727336802202,0.0382175,2630.8,2630.6,0.06172207]
[1727336802768,0.0382175,2630.8,2630.7,1.75458413]
[1727336803062,0.0382175,2630.8,2630.7,0.06130671]
[1727336803288,0.0382175,2630.8,2630.0,7.44]
[1727336803289,3.17414745,2630.8,2630.0,7.44]
[1727336803594,0.7658,2630.5,2630.1,3.10121105]
[1727336803976,0.7658,2630.5,2630.2,3.04152]
[1727336804371,0.7658,2630.5,2630.3,0.05950615]
[1727336804760,3.83031,2630.7,2630.3,0.05950615]
[1727336804966,3.83031,2630.7,2630.2,1.75458413]
[1727336805163,3.04113,2630.6,2630.4,0.0594737]
[1727336805525,3.04113,2630.6,2630.3,0.05950615]
[1727336805660,0.7893,2630.7,2630.5,0.05944125]
[1727336805859,3.83038,2630.7,2630.1,3.04163]
[1727336806098,3.83038,2630.7,2630.2,3.1011186]
[1727336806533,3.83038,2630.7,2630.2,0.0595386]
[1727336806898,0.7893,2630.7,2630.3,3.04144]
[1727336807098,0.7893,2630.7,2630.4,0.0594737]
[1727336807294,0.7893,2630.7,2630.4,3.1008137]
[1727336807529,0.7893,2630.7,2630.4,0.0594737]
[1727336811478,0.7893,2630.7,2630.4,3.1008337]
[1727336811929,0.7893,2630.7,2630.4,0.0594737]
[1727336812264,0.0382175,2630.8,2630.4,3.1008037]
[1727336812670,0.0382175,2630.8,2630.4,0.0594737]
[1727336813337,3.0791375,2630.8,2630.4,0.0594737]
[1727336816672,6.1200975,2630.8,2630.4,0.0594737]
[1727336816833,3.76701725,2630.8,2630.4,0.0594737]
[1727336817034,3.04107,2630.7,2630.4,0.0594737]
[1727336817443,3.04107,2630.7,2630.2,3.04156]
[1727336817985,3.0791275,2630.8,2630.3,3.04147]
[1727336818290,3.0791275,2630.8,2630.3,3.10111325]
[1727336818871,0.0382175,2630.8,2630.3,6.14250325]
[1727336819183,3.0791175,2630.8,2630.3,3.10103325]
[1727336820462,3.0791175,2630.8,2630.3,3.80204258]
[1727336820846,3.04126,2630.5,2630.3,0.05964325]
[1727336821044,3.04126,2630.5,2630.1,3.0417]
[1727336821525,3.04126,2630.5,2630.2,0.0596757]
[1727336821698,3.04125,2630.5,2630.0,3.04181]
[1727336821847,3.04125,2630.5,2630.1,0.05970815]
[1727336822053,3.04125,2630.5,2630.1,3.10139815]
[1727336823477,3.04125,2630.5,2630.1,0.05970815]
[1727336824383,0.8499175,2630.8,2630.3,3.87406]
[1727336824697,0.8499175,2630.8,2630.5,3.04115]
[1727336824698,0.0382175,2630.8,2630.5,3.04115]
[1727336824988,0.0382175,2630.8,2630.6,0.05969748]
[1727336826357,0.0382175,2630.8,2630.6,3.10081748]
[1727336827458,0.0382175,2630.8,2630.7,3.04101]
[1727336827887,0.0382175,2630.8,2630.7,3.10063033]
[1727336828087,0.0382175,2630.8,2630.7,3.5321182]
[1727336828254,0.0382175,2630.8,2630.7,4.36490143]
[1727336828462,0.0382175,2630.8,2630.7,5.16230143]
[1727336829043,0.0382175,2630.8,2630.7,4.36490143]
[1727336830379,0.0382175,2630.8,2630.7,1.32389143]
[1727336830600,0.0382175,2630.8,2630.7,0.05962033]
[1727336831461,0.0382175,2630.8,2630.5,3.04114]
[1727336831706,0.0382175,2630.8,2630.6,0.05955895]
[1727336832366,0.8552175,2630.8,2630.6,0.05955895]
[1727336832700,0.8552175,2630.8,2630.4,3.04127]
[1727336832915,0.8552175,2630.8,2630.5,0.05769153]
[1727336836093,0.8552175,2630.8,2630.5,3.09893153]
[1727336836303,0.0382175,2630.8,2630.5,1.81227566]
[1727336836568,0.0382175,2630.8,2630.7,3.04101]
[1727336836687,0.0382175,2630.8,2630.7,4.6565482]
[1727336837032,0.0382175,2630.8,2630.7,4.71299854]
[1727336837173,0.0382175,2630.8,2630.7,1.67198854]
[1727336837683,0.0382175,2630.8,2630.7,0.85348854]
[1727336838194,0.0382175,2630.8,2630.7,3.89449854]
[1727336842127,0.0382175,2630.8,2630.7,4.58513764]
[1727336842336,0.0382175,2630.8,2630.7,3.89449854]
[1727336846048,0.0382175,2630.8,2630.7,0.85348854]
[1727336846206,0.0382175,2630.8,2630.7,3.09746034]
[1727336848048,0.0382175,2630.8,2630.7,0.05645034]
[1727336849799,0.0382175,2630.8,2630.7,3.09746034]
[1727336854637,0.8559175,2630.8,2630.7,0.05645034]
[1727336855009,0.8559175,2630.8,2630.4,6.08254]
[1727336855230,0.8559175,2630.8,2630.7,0.05594387]
[1727336855451,0.8559175,2630.8,2630.5,3.04123]
[1727336855676,0.8559175,2630.8,2630.7,0.05594387]
[1727336855817,0.8559175,2630.8,2630.6,0.05597631]
[1727336856141,0.8559175,2630.8,2630.7,0.05595829]
[1727336856347,0.8559175,2630.8,2630.5,3.04123]
[1727336856508,0.8559175,2630.8,2630.6,0.05601237]
[1727336860446,0.8559175,2630.8,2630.4,3.04134]
[1727336860647,0.8559175,2630.8,2630.7,0.05600877]
[1727336860871,0.8559175,2630.8,2630.4,3.04134]
[1727336861258,0.8559175,2630.8,2630.5,0.05607365]
[1727336861557,0.8559175,2630.8,2630.5,3.09730365]
[1727336861785,0.0382175,2630.8,2630.7,6.84511]
[1727336861967,0.0382175,2630.8,2630.7,9.15808191]
[1727336862160,0.0382175,2630.8,2630.7,9.13813261]
[1727336863090,0.0382175,2630.8,2630.7,9.1380139]
[1727336863291,0.0382175,2630.8,2630.7,9.32955441]
[1727336863494,0.0382175,2630.8,2630.7,12.42633684]
[1727336863782,0.0382175,2630.8,2630.7,13.21532124]
[1727336864591,0.0382175,2631.6,2631.4,3.04019]
[1727336865050,0.0382175,2631.6,2631.5,0.0554898]
[1727336865567,0.0382175,2631.6,2631.3,3.04032]
[1727336865769,0.8154,2631.5,2631.4,0.05552222]
[1727336865947,0.7654,2631.5,2631.4,0.05552222]
[1727336866147,0.7654,2631.5,2631.2,6.08077]
[1727336866353,0.7654,2631.5,2631.3,0.05555464]
[1727336866703,0.7654,2631.5,2631.2,3.04036]
[1727336866873,0.7654,2631.5,2631.4,0.05552222]
[1727336867093,0.7654,2631.5,2631.3,0.05555464]
[1727336867265,0.7654,2631.5,2631.4,0.05552222]
[1727336867691,0.7654,2631.5,2631.1,3.04049]
[1727336867896,0.7654,2631.5,2631.4,0.05552222]
[1727336868057,0.7654,2631.5,2631.0,7.60470741]
[1727336868394,0.7654,2631.5,2631.0,4.56410741]
[1727336868614,0.7654,2631.5,2631.1,0.0556195]
[1727336869301,3.80549,2631.5,2631.1,0.0556195]
[1727336870091,3.91251459,2631.4,2631.1,0.0556195]
[1727336870499,3.13521459,2631.4,2630.8,10.48082]
[1727336870666,0.8001,2631.3,2631.2,0.05558707]
[1727336870867,0.8001,2631.3,2630.8,3.04082]
[1727336871075,3.84043,2631.3,2631.2,0.05558707]
[1727336871390,4.57738168,2631.3,2631.2,0.05558707]
[1727336871564,4.57738168,2631.3,2630.8,3.04082]
[1727336871766,4.57738168,2631.3,2630.9,0.05568436]
[1727336872362,3.77728168,2631.3,2630.9,0.05568436]
[1727336872561,0.8043,2631.2,2630.9,0.05568436]
[1727336874066,0.8043,2631.2,2630.9,3.09643436]
[1727336874695,0.8043,2631.2,2630.9,0.05568436]
[1727336876199,0.8043,2631.2,2630.9,3.09644436]
[1727336877293,0.8043,2631.2,2630.9,0.05568436]
[1727336878102,0.8043,2631.2,2630.9,3.09640436]
[1727336878303,0.8043,2631.2,2631.0,3.04066]
[1727336878597,0.8043,2631.2,2631.1,0.05041118]
[1727336879471,0.0382175,2631.6,2631.4,3.04019]
[1727336879675,0.0382175,2631.6,2631.5,8.62677413]
[1727336879899,0.0382175,2631.6,2631.5,9.57048345]
[1727336880204,0.0382175,2631.6,2631.5,8.67705562]
[1727336880507,0.0382175,2631.6,2631.5,9.97839703]
[1727336881169,0.0382175,2631.6,2631.5,10.87127954]
[1727336881363,0.0382175,2631.6,2631.5,0.05028149]
[1727336881564,0.0382175,2631.6,2631.5,5.59875562]
[1727336881871,0.0382175,2631.6,2631.5,8.6747473]
[1727336882083,0.0382175,2631.6,2631.5,8.59875562]
[1727336882268,0.0382175,2631.6,2631.5,10.63513875]
[1727336882471,0.0382175,2631.6,2631.5,12.00266463]
[1727336891732,0.0382175,2631.6,2631.5,12.43246755]
[1727336892508,0.0382175,2631.6,2631.5,12.00266463]
[1727336900257,0.0382175,2631.6,2631.5,7.45789737]
[1727336900419,0.0382175,2631.6,2631.5,7.53388671]
[1727336902451,0.0382175,2631.6,2631.5,9.28354451]
[1727336902662,0.0382175,2631.6,2631.5,9.20755517]
[1727336913334,0.0382175,2631.6,2631.5,9.99665517]
[1727336914357,0.0382175,2632.4,2632.3,3.03916]
[1727336914629,0.0382175,2632.4,2632.3,3.38830094]
[1727336916406,0.0382175,2632.4,2632.3,3.46427041]
[1727336917061,0.0382175,2632.4,2632.3,3.38830094]
[1727336917201,0.0382175,2632.4,2632.3,3.08438494]
[1727336917395,0.0382175,2632.4,2632.3,3.16034913]
[1727336918205,0.0382175,2632.4,2632.3,3.97574913]
[1727336918416,0.0382175,2632.4,2632.3,6.97574913]
[1727336918617,0.0382175,2632.4,2632.3,8.15221682]
[1727336918921,0.0382175,2632.4,2632.3,8.07625263]
[1727336919763,0.0732175,2633.2,2633.1,3.03824]
[1727336919919,0.0732175,2633.2,2633.1,4.86384053]
[1727336920237,0.0732175,2633.2,2633.1,5.77932504]
[1727336922226,0.0732175,2633.2,2633.1,1.79398326]
[1727336922555,0.0732175,2633.2,2633.1,4.83222326]
[1727336922750,0.8677175,2633.2,2633.1,0.04432546]
[1727336923322,0.8677175,2633.2,2632.8,1.7496578]
[1727336923641,0.8677175,2633.2,2632.9,0.04439022]
[1727336923642,1.5868867,2633.2,2632.9,0.04439022]
[1727336924143,0.8677175,2633.2,2632.9,0.0759588]
[1727336924351,0.8677175,2633.2,2633.0,0.04204675]
[1727336925169,0.8677175,2633.2,2632.8,3.11453306]
[1727336925314,0.8677175,2633.2,2632.9,0.04069035]
[1727336926256,3.9059275,2633.2,2632.9,0.04069035]
[1727336926549,0.42305275,2633.1,2632.6,6.07748]
[1727336926750,3.9059275,2633.2,2632.7,0.04063285]
[1727336927180,3.9059175,2633.2,2632.7,0.04063285]
[1727336927539,6.9441375,2633.2,2632.7,0.04063285]
[1727336927843,3.03837,2633.0,2632.7,0.04063285]
[1727336928273,3.03837,2633.0,2632.5,3.03892]
[1727336928463,0.7799,2633.1,2632.8,0.04060046]
[1727336928770,4.23973175,2633.1,2632.6,3.03881]
[1727336929080,0.7799,2633.1,2632.7,3.03868]
[1727336929276,0.7799,2633.1,2632.7,3.07931285]
[1727336930343,0.7799,2633.1,2632.7,0.04063285]
[1727336930975,0.7799,2633.1,2632.8,3.03857]
[1727336931177,0.0732175,2633.2,2632.9,0.04056808]
[1727336931376,0.0732175,2633.2,2633.0,3.03831]
[1727336931681,0.0732175,2633.2,2633.1,0.04050331]
[1727336932042,0.0732175,2633.2,2632.9,3.03841]
[1727336932349,0.0732175,2633.2,2633.1,0.04050331]
[1727336932765,0.0732175,2633.2,2632.8,3.03855]
[1727336933080,0.0732175,2633.2,2632.9,0.04056808]
[1727336933482,0.0732175,2633.2,2632.9,3.07893808]
[1727336933666,0.0732175,2633.2,2632.9,6.07678]
[1727336933874,0.0732175,2633.2,2633.0,0.04053569]
[1727336934769,0.0732175,2633.2,2632.8,3.03848]
[1727336935082,0.0732175,2633.2,2632.9,3.07902808]
[1727336937156,0.0732175,2633.2,2633.1,3.03824]
[1727336937483,0.0732175,2633.2,2633.1,3.07882958]
[1727336937976,0.0732175,2633.2,2633.1,0.04058958]
[1727336938970,0.0732175,2633.2,2633.1,3.07882958]
[1727336939581,0.0732175,2633.2,2633.1,3.15477583]
[1727336939788,0.0732175,2633.2,2633.1,3.72892544]
[1727336942334,0.0732175,2633.2,2633.1,0.04058958]
[1727336943310,0.0732175,2633.2,2633.1,3.07882958]
[1727336944100,0.0732175,2633.2,2633.1,3.91212958]
[1727336946354,0.0732175,2633.2,2633.1,3.07882958]
[1727336946550,0.8647175,2633.2,2633.1,0.04058958]
[1727336947043,0.8647175,2633.2,2632.8,3.0385]
[1727336947253,0.8647175,2633.2,2633.1,0.04044578]
[1727336947415,0.8647175,2633.2,2633.0,3.03835]
[1727336947416,0.8647175,2633.2,2632.8,3.0385]
[1727336947614,0.8647175,2633.2,2632.9,0.04051054]
[1727336948346,0.8647175,2633.2,2632.9,3.07896054]
[1727336948751,0.8647175,2633.2,2632.9,0.04051054]
[1727336949308,3.9028475,2633.2,2632.9,0.04051054]
[1727336949539,1.59134425,2633.2,2632.9,0.04051054]
[1727336950415,0.79984425,2633.2,2632.9,0.04051054]
[1727336950634,0.788,2633.1,2632.9,0.04051054]
[1727336952559,0.788,2633.1,2632.9,3.07898054]
[1727336953413,0.0732175,2633.2,2632.9,3.07898054]
[1727336954417,0.0732175,2633.2,2632.9,3.07897054]
[1727336954624,0.0732175,2633.2,2632.9,0.04051054]
[1727336955565,0.79989125,2633.2,2632.9,0.04051054]
[1727336955852,0.7826,2633.1,2632.9,0.04051054]
[1727336957641,0.7826,2633.1,2632.7,3.03866]
[1727336957852,0.7826,2633.1,2632.8,0.03924513]
[1727336958225,0.7826,2633.1,2632.7,3.03866]
[1727336958427,0.7826,2633.1,2632.8,0.03924513]
[1727336958738,0.7826,2633.1,2632.7,3.03866]
[1727336958957,0.7826,2633.1,2632.9,0.0392343]
[1727336959260,0.7826,2633.1,2633.0,0.03920192]
[1727336959634,0.7826,2633.1,2632.9,3.03845]
[1727336959838,0.7826,2633.1,2633.0,0.03920192]
[1727336960559,0.7826,2633.1,2632.8,3.03857]
[1727336960774,0.7826,2633.1,2633.0,0.03920192]
[1727336960980,3.03833,2633.1,2632.9,0.0392343]
[1727336961181,3.86403,2633.1,2633.0,0.03920192]
[1727336961352,0.8257,2633.1,2633.0,0.03920192]
[1727336961553,1.4266767,2633.1,2632.7,3.03868]
[1727336961782,0.8257,2633.1,2633.0,0.03920192]
[1727336961943,0.8257,2633.1,2632.7,3.03868]
[1727336962286,0.8257,2633.1,2632.6,3.03875]
[1727336962447,0.8257,2633.1,2632.8,0.03926669]
[1727336962783,0.7621,2632.9,2632.5,3.03892]
[1727336963279,0.7621,2632.9,2632.6,0.03933147]
[1727336963945,0.7621,2632.9,2632.7,3.03865]
[1727336964140,0.7621,2632.9,2632.7,3.07794908]
[1727336965590,0.7621,2632.9,2632.7,0.03929908]
[1727336966488,0.7621,2632.9,2632.6,3.03881]
[1727336966641,0.7621,2632.9,2632.8,0.03948947]
[1727336966847,0.7621,2632.9,2632.6,3.03881]
[1727336967183,0.7621,2632.9,2632.7,0.03952186]
[1727336968982,0.7621,2632.9,2632.4,3.03896]
[1727336969199,0.7621,2632.9,2632.8,0.03948947]
[1727336969354,0.7621,2632.9,2632.6,3.03881]
[1727336969686,0.7621,2632.9,2632.7,0.03952186]
[1727336970295,0.7621,2632.9,2632.8,0.03948947]
[1727336970465,0.7621,2632.9,2632.4,3.03896]
[1727336970668,0.7621,2632.9,2632.8,0.03948947]
[1727336970870,0.7621,2632.9,2632.6,3.03881]
[1727336971173,0.7621,2632.9,2632.8,0.03948947]
[1727336971608,0.7621,2632.9,2632.5,3.03885]
[1727336971758,0.7621,2632.9,2632.8,0.03948947]
[1727336972279,0.7621,2632.9,2632.5,3.03885]
[1727336972463,0.7621,2632.9,2632.8,0.03948947]
[1727336972998,0.7621,2632.9,2632.5,3.03885]
[1727336973166,0.7621,2632.9,2632.8,0.03948947]
[1727336973374,0.7621,2632.9,2632.5,3.03885]
[1727336973582,0.7621,2632.9,2632.8,0.03948947]
[1727336973792,0.7621,2632.9,2632.5,3.03885]
[1727336973992,0.7621,2632.9,2632.8,0.03948947]
[1727336974179,0.7621,2632.9,2632.5,3.03885]
[1727336974376,0.7621,2632.9,2632.8,0.03948947]
[1727336974999,0.7621,2632.9,2632.5,3.03885]
[1727336975186,3.93351632,2632.9,2632.8,0.03948947]
[1727336975361,3.93351632,2632.9,2632.1,6.03932]
[1727336975362,3.83864,2632.8,2632.1,6.03932]
[1727336975564,0.8,2632.6,2632.2,0.42487346]
[1727336975805,0.8,2632.6,2632.2,0.038402]
[1727336975806,3.83888,2632.6,2632.2,0.038402]
[1727336976104,4.78705953,2632.5,2632.2,0.038402]
[1727336976290,0.7867,2632.4,2632.2,0.038402]
[1727336976604,0.7867,2632.4,2631.7,7.44]
[1727336976605,0.7788,2632.3,2631.7,10.47982]
[1727336976767,0.7788,2632.3,2631.9,3.0396]
[1727336977169,0.7788,2632.3,2631.9,3.03955]
[1727336977397,0.7788,2632.3,2631.9,6.0791]
[1727336977670,0.7788,2632.3,2632.0,3.03951]
[1727336979571,0.7788,2632.3,2631.9,3.03955]
[1727336980171,0.7788,2632.3,2631.7,3.03977]
[1727336980372,0.7788,2632.3,2631.8,3.03966]
[1727336981612,0.7788,2632.3,2631.9,3.03958]
[1727336982113,0.7788,2632.3,2631.8,3.03966]
[1727336982114,3.03918,2632.3,2631.8,3.03966]
[1727336982414,0.7845,2632.2,2631.8,3.03966]
[1727336982615,0.7845,2632.2,2631.8,6.07934]
[1727336982909,0.7845,2632.2,2631.8,3.03966]
[1727336984890,3.8238,2632.2,2631.7,3.03983]
[1727336985080,4.76411849,2632.2,2631.7,3.03983]
[1727336986113,4.76411849,2632.2,2631.6,3.0399]
[1727336986324,0.8108,2632.0,2631.6,3.0399]
[1727336986703,0.8108,2632.0,2631.7,3.03979]
[1727336987100,0.8108,2632.0,2631.4,0.8066]
[1727336987331,0.8108,2632.0,2631.6,3.03995]
[1727336987516,0.8108,2632.0,2631.6,6.07986]
[1727336987718,0.8108,2632.0,2631.6,6.07982]
[1727336987920,0.8108,2632.0,2631.6,3.03991]
[1727336989293,0.7721,2632.4,2632.0,3.0395]
[1727336989630,0.7721,2632.7,2632.3,3.03915]
[1727336989998,3.81082,2632.7,2632.2,3.03921]
[1727336990227,0.7721,2632.7,2632.2,3.03921]
[1727336990533,0.7721,2632.7,2632.3,3.03916]
[1727336990734,0.7721,2632.7,2632.3,3.0391]
[1727336991395,0.7721,2632.7,2632.4,0.03746413]
[1727336994331,4.20136906,2632.7,2632.1,6.07866]
[1727336994530,4.20136906,2632.7,2632.5,0.03743174]
[1727336994732,4.20136906,2632.7,2632.1,6.07866]
[1727336994932,4.20136906,2632.7,2632.6,0.03739934]
[1727336995135,4.20136906,2632.7,2632.1,3.03932]
[1727336995358,4.20136906,2632.7,2632.6,0.03739934]
[1727336995520,4.20136906,2632.7,2632.1,3.03932]
[1727336995839,4.20136906,2632.7,2632.6,0.03739934]
[1727336996132,4.20136906,2632.7,2632.6,0.03765075]
[1727336996339,4.20136906,2632.7,2632.1,3.03932]
[1727336996542,3.8108,2632.7,2632.6,0.03765075]
[1727336997200,0.7721,2632.7,2632.2,3.03927]
[1727336997511,0.7721,2632.7,2632.4,3.03905]
[1727336997901,0.7721,2632.7,2632.5,0.03746761]
[1727336999017,0.7916,2632.6,2632.1,3.03936]
[1727336999340,0.7916,2632.5,2632.2,0.03756481]
[1727336999518,3.83057,2632.5,2632.2,0.03756481]
[1727337000028,0.7916,2632.5,2632.3,0.03753241]
[1727337000420,0.7916,2632.5,2632.1,3.03935]
[1727337000617,3.83054,2632.5,2632.0,3.0395]
[1727337001018,3.83054,2632.5,2632.1,0.03759721]
[1727337001019,0.91737207,2632.4,2632.1,0.03759721]
[1727337001268,0.8224,2632.2,2631.8,3.03968]
[1727337001536,0.8224,2632.7,2632.2,6.07847]
[1727337001772,0.8224,2632.7,2632.3,3.03916]
[1727337002116,0.8224,2632.7,2632.3,3.07548351]
[1727337003022,0.8224,2632.7,2632.3,4.45685286]
[1727337003268,2.06349663,2633.2,2632.3,4.45685286]
[1727337003269,3.85713,2633.0,2632.4,3.03893]
[1727337003561,3.0385,2632.9,2632.5,0.03621561]